[Event "Early-Titled-Tuesday-Blitz-May-07-2024"]
[Site "Chess.com"]
[Date "2024.05.07"]
[Round "7"]
[White "ccccvhhhj"]
[Black "BM223344"]
[Result "0-1"]
[WhiteElo "2483"]
[BlackElo "2623"]
[TimeControl "180+1"]
[EndTime "9:19:14 PDT"]
[Termination "BM223344 won by checkmate"]

1. e4 {[%clk 0:03:00.9]} 1... e6 {[%clk 0:02:57.2]} 2. Nf3 {[%clk 0:03:01]} 2...
d5 {[%clk 0:02:57.3]} 3. e5 {[%clk 0:03:01.8]} 3... c5 {[%clk 0:02:56.8]} 4. b4
{[%clk 0:03:02.5]} 4... cxb4 {[%clk 0:02:56.7]} 5. a3 {[%clk 0:03:03.3]} 5...
bxa3 {[%clk 0:02:57.2]} 6. Nxa3 {[%clk 0:03:03.9]} 6... Ne7 {[%clk 0:02:55]} 7.
c3 {[%clk 0:03:04.1]} 7... Nbc6 {[%clk 0:02:55.1]} 8. d4 {[%clk 0:03:05]} 8...
Ng6 {[%clk 0:02:55]} 9. h4 {[%clk 0:03:00.8]} 9... h5 {[%clk 0:02:49.7]} 10. Bd3
{[%clk 0:02:57.9]} 10... Nge7 {[%clk 0:02:49.1]} 11. Nb5 {[%clk 0:02:57]} 11...
Nf5 {[%clk 0:02:49]} 12. Ba3 {[%clk 0:02:29.2]} 12... Bxa3 {[%clk 0:02:40.4]}
13. Rxa3 {[%clk 0:02:30.1]} 13... O-O {[%clk 0:02:40.5]} 14. Ng5 {[%clk
0:02:04.1]} 14... g6 {[%clk 0:02:35.2]} 15. g4 {[%clk 0:02:03.5]} 15... Nxh4
{[%clk 0:02:32.6]} 16. Rxh4 {[%clk 0:01:01.5]} 16... Qxg5 {[%clk 0:02:31.7]} 17.
Rh1 {[%clk 0:01:01.8]} 17... a6 {[%clk 0:02:20.3]} 18. Nd6 {[%clk 0:01:01.8]}
18... hxg4 {[%clk 0:02:16.4]} 19. Rg1 {[%clk 0:00:45.5]} 19... Nxe5 {[%clk
0:02:16.4]} 20. dxe5 {[%clk 0:00:35.6]} 20... Qxe5+ {[%clk 0:02:16.4]} 21. Qe2
{[%clk 0:00:36.5]} 21... Qxd6 {[%clk 0:02:16.4]} 22. Ra1 {[%clk 0:00:33.5]}
22... e5 {[%clk 0:02:16.7]} 23. Rh1 {[%clk 0:00:32.5]} 23... e4 {[%clk
0:02:15.5]} 24. Qe3 {[%clk 0:00:26.5]} 24... Qf6 {[%clk 0:02:11.9]} 25. Qh6
{[%clk 0:00:25.4]} 25... Qxc3+ {[%clk 0:02:12.2]} 26. Ke2 {[%clk 0:00:25.2]}
26... exd3+ {[%clk 0:02:12.4]} 27. Ke3 {[%clk 0:00:25.1]} 27... Re8+ {[%clk
0:02:10.3]} 28. Kf4 {[%clk 0:00:25.3]} 28... Qe5# {[%clk 0:02:09.5]} 0-1

[Event "Early-Titled-Tuesday-Blitz-May-07-2024"]
[Site "Chess.com"]
[Date "2024.05.07"]
[Round "7"]
[White "JeFumeDesClopes"]
[Black "gurelediz"]
[Result "0-1"]
[WhiteElo "2712"]
[BlackElo "2957"]
[TimeControl "180+1"]
[EndTime "9:19:15 PDT"]
[Termination "gurelediz won by resignation"]

1. Nf3 {[%clk 0:02:45.6]} 1... Nf6 {[%clk 0:03:00]} 2. g3 {[%clk 0:02:45.8]}
2... d6 {[%clk 0:02:58.9]} 3. d4 {[%clk 0:02:44.7]} 3... g6 {[%clk 0:02:59]} 4.
Bg2 {[%clk 0:02:45.1]} 4... Bg7 {[%clk 0:02:59.9]} 5. O-O {[%clk 0:02:45.8]}
5... O-O {[%clk 0:03:00.8]} 6. b3 {[%clk 0:02:45.4]} 6... Nbd7 {[%clk 0:02:59]}
7. Bb2 {[%clk 0:02:45.7]} 7... c6 {[%clk 0:02:56.4]} 8. c4 {[%clk 0:02:45.4]}
8... Qc7 {[%clk 0:02:57]} 9. Nc3 {[%clk 0:02:42.1]} 9... e5 {[%clk 0:02:57.5]}
10. e4 {[%clk 0:02:42.1]} 10... Re8 {[%clk 0:02:54.7]} 11. Re1 {[%clk
0:02:42.5]} 11... a5 {[%clk 0:02:54.5]} 12. h3 {[%clk 0:02:42.6]} 12... exd4
{[%clk 0:02:51.5]} 13. Nxd4 {[%clk 0:02:42.7]} 13... Nc5 {[%clk 0:02:52.3]} 14.
Qc2 {[%clk 0:02:34.9]} 14... Bd7 {[%clk 0:02:51.3]} 15. Rad1 {[%clk 0:02:34.6]}
15... Rad8 {[%clk 0:02:52]} 16. Kh2 {[%clk 0:02:33.8]} 16... h5 {[%clk
0:02:46.7]} 17. f4 {[%clk 0:02:05.8]} 17... Bc8 {[%clk 0:02:46.4]} 18. Qf2
{[%clk 0:02:02.8]} 18... h4 {[%clk 0:02:32.1]} 19. g4 {[%clk 0:01:56]} 19...
Bxg4 {[%clk 0:02:31.7]} 20. e5 {[%clk 0:01:51.6]} 20... dxe5 {[%clk 0:02:20.5]}
21. Ndb5 {[%clk 0:01:40.9]} 21... cxb5 {[%clk 0:02:14.1]} 22. Nxb5 {[%clk
0:01:41]} 22... Qc8 {[%clk 0:01:39.6]} 23. Rxd8 {[%clk 0:01:31.6]} 23... Rxd8
{[%clk 0:01:40.5]} 24. fxe5 {[%clk 0:01:22.7]} 24... Nd3 {[%clk 0:01:38.1]} 25.
Qxh4 {[%clk 0:01:15.1]} 25... Nxe1 {[%clk 0:01:28.5]} 26. exf6 {[%clk
0:01:14.7]} 26... Nxg2 {[%clk 0:01:28.7]} 27. Qxg4 {[%clk 0:01:09.3]} 27... Qxg4
{[%clk 0:01:28.3]} 28. hxg4 {[%clk 0:01:10.2]} 28... Ne3 {[%clk 0:01:25.2]} 0-1

[Event "Early-Titled-Tuesday-Blitz-May-07-2024"]
[Site "Chess.com"]
[Date "2024.05.07"]
[Round "7"]
[White "alvarorodriguezavila"]
[Black "lluiss"]
[Result "1-0"]
[WhiteElo "2336"]
[BlackElo "2220"]
[TimeControl "180+1"]
[EndTime "9:19:31 PDT"]
[Termination "alvarorodriguezavila won by resignation"]

1. e4 {[%clk 0:03:00.9]} 1... c5 {[%clk 0:02:59.2]} 2. d4 {[%clk 0:03:00.9]}
2... cxd4 {[%clk 0:02:58.7]} 3. c3 {[%clk 0:03:01.6]} 3... dxc3 {[%clk
0:02:58.8]} 4. Nf3 {[%clk 0:03:00.4]} 4... Nc6 {[%clk 0:02:58.7]} 5. Bc4 {[%clk
0:03:00.9]} 5... e6 {[%clk 0:02:58.2]} 6. O-O {[%clk 0:03:01.5]} 6... a6 {[%clk
0:02:55.1]} 7. Nxc3 {[%clk 0:03:01.7]} 7... Bb4 {[%clk 0:02:41]} 8. Qe2 {[%clk
0:02:59.1]} 8... Bxc3 {[%clk 0:02:40.4]} 9. bxc3 {[%clk 0:02:59.2]} 9... Nge7
{[%clk 0:02:40.9]} 10. Ba3 {[%clk 0:02:59.7]} 10... O-O {[%clk 0:02:40.1]} 11.
Rfd1 {[%clk 0:03:00]} 11... b5 {[%clk 0:02:26.9]} 12. Bb3 {[%clk 0:03:00.6]}
12... b4 {[%clk 0:01:55.7]} 13. cxb4 {[%clk 0:02:59.7]} 13... d5 {[%clk
0:01:56.3]} 14. exd5 {[%clk 0:02:55.8]} 14... exd5 {[%clk 0:01:55.6]} 15. h3
{[%clk 0:02:46.3]} 15... Rb8 {[%clk 0:01:42.3]} 16. b5 {[%clk 0:02:30.2]} 16...
axb5 {[%clk 0:01:32.2]} 17. Bxd5 {[%clk 0:02:26.3]} 17... Nxd5 {[%clk
0:01:16.9]} 18. Bxf8 {[%clk 0:02:24.5]} 18... Kxf8 {[%clk 0:01:16.3]} 19. Qe4
{[%clk 0:01:59.9]} 19... Be6 {[%clk 0:01:07.5]} 20. Qxh7 {[%clk 0:02:00.3]}
20... Qf6 {[%clk 0:01:07.2]} 21. Rac1 {[%clk 0:01:52.9]} 21... Rc8 {[%clk
0:01:07.3]} 22. Rxd5 {[%clk 0:01:44.6]} 22... Bxd5 {[%clk 0:01:05.8]} 23. Qh8+
{[%clk 0:01:44.2]} 23... Ke7 {[%clk 0:01:02.8]} 24. Qxc8 {[%clk 0:01:44]} 24...
Bc4 {[%clk 0:00:55.9]} 25. Re1+ {[%clk 0:01:35.9]} 25... Kd6 {[%clk 0:00:55.3]}
26. Nd2 {[%clk 0:01:31.6]} 26... Qc3 {[%clk 0:00:51.9]} 27. Ne4+ {[%clk
0:01:31.7]} 1-0

[Event "Early-Titled-Tuesday-Blitz-May-07-2024"]
[Site "Chess.com"]
[Date "2024.05.07"]
[Round "7"]
[White "DanielDardha2005"]
[Black "jinbojinbo"]
[Result "1-0"]
[WhiteElo "2887"]
[BlackElo "2647"]
[TimeControl "180+1"]
[EndTime "9:19:33 PDT"]
[Termination "DanielDardha2005 won by resignation"]

1. d4 {[%clk 0:03:00.9]} 1... f5 {[%clk 0:02:59.7]} 2. Nh3 {[%clk 0:02:56.7]}
2... Nf6 {[%clk 0:02:59]} 3. g3 {[%clk 0:02:55.9]} 3... g6 {[%clk 0:02:59]} 4.
Bg2 {[%clk 0:02:55.8]} 4... Bg7 {[%clk 0:02:59.2]} 5. c3 {[%clk 0:02:56.1]} 5...
O-O {[%clk 0:02:58.7]} 6. Nf4 {[%clk 0:02:56.7]} 6... e6 {[%clk 0:02:55.7]} 7.
h4 {[%clk 0:02:56.1]} 7... Qe8 {[%clk 0:02:28]} 8. Nd2 {[%clk 0:02:25.7]} 8...
Nc6 {[%clk 0:02:12]} 9. Nf3 {[%clk 0:02:23.5]} 9... d5 {[%clk 0:01:50.1]} 10. h5
{[%clk 0:02:19.8]} 10... Ne4 {[%clk 0:01:47.1]} 11. hxg6 {[%clk 0:02:15.3]}
11... hxg6 {[%clk 0:01:46.2]} 12. Nd3 {[%clk 0:02:13.8]} 12... Bf6 {[%clk
0:01:35.6]} 13. Bf4 {[%clk 0:01:55.1]} 13... Rf7 {[%clk 0:01:13.3]} 14. Nfe5
{[%clk 0:01:50.6]} 14... Nxe5 {[%clk 0:01:05.7]} 15. Bxe5 {[%clk 0:01:47.1]}
15... Qe7 {[%clk 0:01:00]} 16. Qc1 {[%clk 0:01:33.9]} 16... g5 {[%clk
0:00:53.7]} 17. Bxe4 {[%clk 0:01:33.8]} 1-0

[Event "Early-Titled-Tuesday-Blitz-May-07-2024"]
[Site "Chess.com"]
[Date "2024.05.07"]
[Round "7"]
[White "Kirillov_Andrey"]
[Black "Guldona_2007"]
[Result "0-1"]
[WhiteElo "2385"]
[BlackElo "2193"]
[TimeControl "180+1"]
[EndTime "9:19:39 PDT"]
[Termination "Guldona_2007 won by resignation"]

1. e4 {[%clk 0:02:49.5]} 1... c5 {[%clk 0:02:59.6]} 2. Nf3 {[%clk 0:02:43.9]}
2... d6 {[%clk 0:02:59.9]} 3. d4 {[%clk 0:02:44.5]} 3... cxd4 {[%clk 0:02:59.8]}
4. Nxd4 {[%clk 0:02:45.4]} 4... Nf6 {[%clk 0:03:00.3]} 5. Nc3 {[%clk 0:02:46]}
5... Nc6 {[%clk 0:03:00.8]} 6. Be3 {[%clk 0:02:46.6]} 6... e5 {[%clk 0:03:00]}
7. Nb3 {[%clk 0:02:46.2]} 7... Be6 {[%clk 0:02:57.9]} 8. f3 {[%clk 0:02:45.6]}
8... d5 {[%clk 0:02:55.5]} 9. exd5 {[%clk 0:02:44.4]} 9... Nxd5 {[%clk
0:02:55.5]} 10. Nxd5 {[%clk 0:02:45.3]} 10... Bxd5 {[%clk 0:02:52.3]} 11. Bd3
{[%clk 0:02:46.2]} 11... Be7 {[%clk 0:02:49.3]} 12. O-O {[%clk 0:02:45.8]} 12...
O-O {[%clk 0:02:48.2]} 13. c3 {[%clk 0:02:45.4]} 13... f5 {[%clk 0:02:46.6]} 14.
Qe2 {[%clk 0:02:43.7]} 14... Be6 {[%clk 0:02:41.5]} 15. Rfd1 {[%clk 0:02:37.8]}
15... Qc7 {[%clk 0:02:39.5]} 16. Nc5 {[%clk 0:02:33.9]} 16... Bxc5 {[%clk
0:02:36.4]} 17. Bxc5 {[%clk 0:02:34.8]} 17... Rfd8 {[%clk 0:02:34]} 18. b4
{[%clk 0:02:32.8]} 18... b6 {[%clk 0:02:25.9]} 19. Bf2 {[%clk 0:02:31.3]} 19...
Ne7 {[%clk 0:02:24]} 20. c4 {[%clk 0:02:27.9]} 20... Ng6 {[%clk 0:02:17]} 21. g3
{[%clk 0:02:21.9]} 21... h5 {[%clk 0:02:12]} 22. c5 {[%clk 0:02:17.8]} 22... h4
{[%clk 0:02:07.8]} 23. Bc4 {[%clk 0:02:14]} 23... Qe7 {[%clk 0:02:01.8]} 24.
cxb6 {[%clk 0:02:08]} 24... axb6 {[%clk 0:01:53.1]} 25. Bxb6 {[%clk 0:02:08.9]}
25... Rxd1+ {[%clk 0:01:50.8]} 26. Rxd1 {[%clk 0:02:09.8]} 26... Rb8 {[%clk
0:01:44.3]} 27. Bc5 {[%clk 0:02:08.2]} 27... Qf7 {[%clk 0:01:44.4]} 28. Bxe6
{[%clk 0:01:59.7]} 28... Qxe6 {[%clk 0:01:44.6]} 29. Rd6 {[%clk 0:01:53.3]}
29... Qe8 {[%clk 0:01:44.5]} 30. a4 {[%clk 0:01:47.2]} 30... hxg3 {[%clk
0:01:41.9]} 31. hxg3 {[%clk 0:01:47.4]} 31... f4 {[%clk 0:01:28.9]} 32. Qe4
{[%clk 0:01:40.2]} 32... Kh7 {[%clk 0:01:22]} 33. gxf4 {[%clk 0:01:34.6]} 33...
exf4 {[%clk 0:01:21.8]} 34. Qxf4 {[%clk 0:01:35.5]} 34... Nxf4 {[%clk
0:01:17.2]} 0-1

[Event "Early-Titled-Tuesday-Blitz-May-07-2024"]
[Site "Chess.com"]
[Date "2024.05.07"]
[Round "7"]
[White "klifus"]
[Black "giovannibrandao7"]
[Result "0-1"]
[WhiteElo "2198"]
[BlackElo "2314"]
[TimeControl "180+1"]
[EndTime "9:19:44 PDT"]
[Termination "giovannibrandao7 won by resignation"]

1. Nf3 {[%clk 0:03:00.9]} 1... Nf6 {[%clk 0:03:00.2]} 2. g3 {[%clk 0:02:59.8]}
2... g6 {[%clk 0:03:00.9]} 3. Bg2 {[%clk 0:02:59.5]} 3... Bg7 {[%clk 0:03:01.6]}
4. O-O {[%clk 0:02:59.5]} 4... O-O {[%clk 0:03:02.5]} 5. c4 {[%clk 0:02:59]}
5... c5 {[%clk 0:03:01.6]} 6. Nc3 {[%clk 0:02:58.1]} 6... Nc6 {[%clk 0:03:01.9]}
7. Rb1 {[%clk 0:02:53.6]} 7... d5 {[%clk 0:02:55.3]} 8. cxd5 {[%clk 0:02:51.7]}
8... Nxd5 {[%clk 0:02:56.2]} 9. e4 {[%clk 0:02:41.4]} 9... Ndb4 {[%clk
0:02:48.5]} 10. a3 {[%clk 0:02:34.5]} 10... Nd3 {[%clk 0:02:47]} 11. Ne1 {[%clk
0:02:27.6]} 11... Nxe1 {[%clk 0:02:31]} 12. Rxe1 {[%clk 0:02:26.3]} 12... Nd4
{[%clk 0:02:31.9]} 13. d3 {[%clk 0:02:23.8]} 13... Be6 {[%clk 0:02:28.8]} 14. b4
{[%clk 0:02:22.2]} 14... cxb4 {[%clk 0:02:27.2]} 15. axb4 {[%clk 0:02:21.3]}
15... Rc8 {[%clk 0:01:49.7]} 16. Bd2 {[%clk 0:02:18.9]} 16... Nb3 {[%clk
0:01:34.8]} 17. Rxb3 {[%clk 0:02:11.3]} 17... Bxb3 {[%clk 0:01:33.9]} 18. Qxb3
{[%clk 0:02:10.1]} 18... Qxd3 {[%clk 0:01:34.3]} 19. Rd1 {[%clk 0:01:49.1]}
19... Bxc3 {[%clk 0:01:26.3]} 20. Bxc3 {[%clk 0:01:37.4]} 20... Qxc3 {[%clk
0:01:22.6]} 21. Qxc3 {[%clk 0:01:35.8]} 21... Rxc3 {[%clk 0:01:23.5]} 22. e5
{[%clk 0:01:34]} 22... Rc4 {[%clk 0:01:16.5]} 23. b5 {[%clk 0:01:28]} 23... Rc5
{[%clk 0:01:15]} 24. Rd5 {[%clk 0:01:21.7]} 24... Rfc8 {[%clk 0:01:12.4]} 25. f4
{[%clk 0:01:15.3]} 25... Rxd5 {[%clk 0:01:10.9]} 26. Bxd5 {[%clk 0:01:13.4]}
26... Rc5 {[%clk 0:01:11.5]} 27. Bxb7 {[%clk 0:01:12.6]} 27... Rxb5 {[%clk
0:01:11.7]} 28. Bc6 {[%clk 0:01:11.8]} 28... Rb1+ {[%clk 0:01:11.5]} 29. Kg2
{[%clk 0:01:10.8]} 29... Rb2+ {[%clk 0:01:12.2]} 30. Kg1 {[%clk 0:01:09.9]}
30... a5 {[%clk 0:01:12.3]} 0-1

[Event "Early-Titled-Tuesday-Blitz-May-07-2024"]
[Site "Chess.com"]
[Date "2024.05.07"]
[Round "7"]
[White "HeroWilczek"]
[Black "Triumphmate"]
[Result "0-1"]
[WhiteElo "2567"]
[BlackElo "2452"]
[TimeControl "180+1"]
[EndTime "9:19:45 PDT"]
[Termination "Triumphmate won by resignation"]

1. Nf3 {[%clk 0:03:00.3]} 1... d5 {[%clk 0:03:00.9]} 2. b3 {[%clk 0:02:58.7]}
2... e6 {[%clk 0:03:00.5]} 3. Bb2 {[%clk 0:02:58.8]} 3... f5 {[%clk 0:03:00.6]}
4. e3 {[%clk 0:02:58.1]} 4... Nf6 {[%clk 0:02:55.4]} 5. c4 {[%clk 0:02:53.8]}
5... Be7 {[%clk 0:02:55]} 6. Be2 {[%clk 0:02:54]} 6... O-O {[%clk 0:02:53.9]} 7.
O-O {[%clk 0:02:54.5]} 7... c6 {[%clk 0:02:51.1]} 8. d3 {[%clk 0:02:50.5]} 8...
Nbd7 {[%clk 0:02:47]} 9. Nbd2 {[%clk 0:02:51]} 9... b6 {[%clk 0:02:47.1]} 10.
Qc2 {[%clk 0:02:48.8]} 10... Bb7 {[%clk 0:02:47.6]} 11. e4 {[%clk 0:02:46.8]}
11... Rc8 {[%clk 0:02:46.3]} 12. Rfe1 {[%clk 0:02:42.1]} 12... c5 {[%clk
0:02:46.5]} 13. exf5 {[%clk 0:02:39.4]} 13... exf5 {[%clk 0:02:43]} 14. Ne5
{[%clk 0:02:39]} 14... Nxe5 {[%clk 0:02:42.6]} 15. Bxe5 {[%clk 0:02:39.9]} 15...
Bd6 {[%clk 0:02:39]} 16. Bf3 {[%clk 0:02:33.4]} 16... Bxe5 {[%clk 0:02:35.1]}
17. Rxe5 {[%clk 0:02:34.3]} 17... Qd6 {[%clk 0:02:31.6]} 18. Rae1 {[%clk
0:02:33.1]} 18... Ne4 {[%clk 0:02:25.4]} 19. Rxd5 {[%clk 0:02:06.1]} 19... Bxd5
{[%clk 0:02:18.7]} 20. dxe4 {[%clk 0:02:05.2]} 20... fxe4 {[%clk 0:02:17.7]} 21.
Nxe4 {[%clk 0:02:02.7]} 21... Bxe4 {[%clk 0:02:18.1]} 22. Bxe4 {[%clk
0:02:01.5]} 22... h6 {[%clk 0:02:18.6]} 23. Bd5+ {[%clk 0:01:58]} 23... Kh8
{[%clk 0:02:18.5]} 24. Re6 {[%clk 0:01:49.6]} 24... Rce8 {[%clk 0:02:17.5]} 25.
Re2 {[%clk 0:01:36.7]} 25... Qf4 {[%clk 0:02:03.2]} 26. g3 {[%clk 0:01:32.4]}
26... Qg4 {[%clk 0:01:57.3]} 27. Rxe8 {[%clk 0:01:19.4]} 27... Rxe8 {[%clk
0:01:58.2]} 28. Kg2 {[%clk 0:01:17.1]} 28... Qe2 {[%clk 0:01:45.5]} 29. Qg6
{[%clk 0:01:11.9]} 29... Rf8 {[%clk 0:01:45]} 30. Bf7 {[%clk 0:01:01.9]} 30...
Qxa2 {[%clk 0:01:31.5]} 31. g4 {[%clk 0:01:02.3]} 31... Qd2 {[%clk 0:01:25.6]}
32. h4 {[%clk 0:01:00.8]} 32... Qf4 {[%clk 0:01:25.4]} 0-1

[Event "Early-Titled-Tuesday-Blitz-May-07-2024"]
[Site "Chess.com"]
[Date "2024.05.07"]
[Round "7"]
[White "Alina_Gumerovna"]
[Black "MaxLeto"]
[Result "0-1"]
[WhiteElo "2183"]
[BlackElo "2427"]
[TimeControl "180+1"]
[EndTime "9:19:45 PDT"]
[Termination "MaxLeto won on time"]

1. e4 {[%clk 0:02:56.7]} 1... c5 {[%clk 0:02:59.2]} 2. Nf3 {[%clk 0:02:57.6]}
2... d6 {[%clk 0:02:59.7]} 3. d4 {[%clk 0:02:58.1]} 3... cxd4 {[%clk 0:03:00.6]}
4. Nxd4 {[%clk 0:02:59]} 4... Nf6 {[%clk 0:03:01]} 5. Nc3 {[%clk 0:02:58.8]}
5... a6 {[%clk 0:03:01.6]} 6. f3 {[%clk 0:02:58.4]} 6... e6 {[%clk 0:03:02]} 7.
Be3 {[%clk 0:02:53.4]} 7... b5 {[%clk 0:03:01.8]} 8. Qd2 {[%clk 0:02:52]} 8...
Nbd7 {[%clk 0:03:01.5]} 9. g4 {[%clk 0:02:27.3]} 9... h6 {[%clk 0:03:00.2]} 10.
h4 {[%clk 0:02:25.9]} 10... Bb7 {[%clk 0:03:00.4]} 11. a4 {[%clk 0:02:04.2]}
11... b4 {[%clk 0:03:00.2]} 12. Na2 {[%clk 0:02:03.7]} 12... d5 {[%clk
0:03:00.9]} 13. g5 {[%clk 0:01:24]} 13... hxg5 {[%clk 0:03:00]} 14. Bxg5 {[%clk
0:01:24.9]} 14... dxe4 {[%clk 0:02:59.4]} 15. fxe4 {[%clk 0:01:19.7]} 15... Bxe4
{[%clk 0:03:00.3]} 16. Bg2 {[%clk 0:01:18.8]} 16... Qa5 {[%clk 0:02:48]} 17. Nc6
{[%clk 0:00:30.9]} 17... Qxa4 {[%clk 0:02:29.2]} 18. Ncxb4 {[%clk 0:00:12.9]}
18... Bxb4 {[%clk 0:02:22.6]} 19. Nxb4 {[%clk 0:00:11.3]} 19... Qxa1+ {[%clk
0:02:21.5]} 20. Kf2 {[%clk 0:00:11.3]} 20... Qxb2 {[%clk 0:02:17.8]} 21. Bxf6
{[%clk 0:00:03.4]} 21... Nxf6 {[%clk 0:02:14.8]} 22. Rd1 {[%clk 0:00:03.1]}
22... O-O {[%clk 0:02:13.7]} 23. h5 {[%clk 0:00:02]} 23... Qe5 {[%clk 0:02:12]}
24. h6 {[%clk 0:00:02.3]} 24... Ng4+ {[%clk 0:02:08.3]} 25. Kg1 {[%clk
0:00:02.4]} 25... Qh2+ {[%clk 0:02:07.6]} 26. Kf1 {[%clk 0:00:02.5]} 26... Bxg2+
{[%clk 0:02:06]} 27. Qxg2 {[%clk 0:00:02.6]} 27... Ne3+ {[%clk 0:02:06.7]} 0-1

[Event "Early-Titled-Tuesday-Blitz-May-07-2024"]
[Site "Chess.com"]
[Date "2024.05.07"]
[Round "7"]
[White "Lucky_Puncher"]
[Black "KorolDimitriy75"]
[Result "1-0"]
[WhiteElo "2545"]
[BlackElo "2374"]
[TimeControl "180+1"]
[EndTime "9:19:55 PDT"]
[Termination "Lucky_Puncher won on time"]

1. d4 {[%clk 0:03:00.1]} 1... Nf6 {[%clk 0:02:59.7]} 2. c4 {[%clk 0:03:00.2]}
2... c5 {[%clk 0:02:59.9]} 3. d5 {[%clk 0:03:00.5]} 3... b5 {[%clk 0:03:00.2]}
4. cxb5 {[%clk 0:03:00.7]} 4... a6 {[%clk 0:03:00.6]} 5. e3 {[%clk 0:03:00.8]}
5... axb5 {[%clk 0:03:00]} 6. Bxb5 {[%clk 0:03:01.7]} 6... Qa5+ {[%clk
0:02:59.9]} 7. Nc3 {[%clk 0:03:01.3]} 7... Bb7 {[%clk 0:03:00.2]} 8. Bd2 {[%clk
0:03:01.6]} 8... Qb6 {[%clk 0:02:59.7]} 9. a4 {[%clk 0:03:01.7]} 9... Nxd5
{[%clk 0:02:58.6]} 10. Nf3 {[%clk 0:03:01.9]} 10... e6 {[%clk 0:02:58.3]} 11.
O-O {[%clk 0:03:02]} 11... Nb4 {[%clk 0:02:58.5]} 12. e4 {[%clk 0:03:01.5]}
12... Be7 {[%clk 0:02:58.7]} 13. Ne5 {[%clk 0:02:53.9]} 13... O-O {[%clk
0:02:56.6]} 14. Bf4 {[%clk 0:02:50.4]} 14... d5 {[%clk 0:02:45.2]} 15. exd5
{[%clk 0:02:47.7]} 15... exd5 {[%clk 0:02:46.1]} 16. Re1 {[%clk 0:02:46.2]}
16... d4 {[%clk 0:01:29]} 17. Ne4 {[%clk 0:02:31.8]} 17... Nd5 {[%clk
0:01:18.4]} 18. Bg3 {[%clk 0:02:28.3]} 18... f5 {[%clk 0:01:14.6]} 19. Nc4
{[%clk 0:02:20]} 19... Qg6 {[%clk 0:00:59.3]} 20. Ned6 {[%clk 0:02:16.7]} 20...
f4 {[%clk 0:00:16.2]} 21. Nxb7 {[%clk 0:02:13.2]} 21... fxg3 {[%clk 0:00:15.3]}
22. hxg3 {[%clk 0:02:14.1]} 22... Bg5 {[%clk 0:00:12.9]} 23. Nxc5 {[%clk
0:02:04.6]} 23... Nc6 {[%clk 0:00:11]} 24. Ne6 {[%clk 0:01:59.2]} 24... Rfe8
{[%clk 0:00:09.5]} 25. Bxc6 {[%clk 0:01:57.5]} 25... Rxe6 {[%clk 0:00:08.3]} 26.
Rxe6 {[%clk 0:01:57.7]} 26... Qxe6 {[%clk 0:00:09.2]} 27. Bxa8 {[%clk
0:01:58.4]} 1-0

[Event "Early-Titled-Tuesday-Blitz-May-07-2024"]
[Site "Chess.com"]
[Date "2024.05.07"]
[Round "7"]
[White "kemelgallo"]
[Black "Rosh1610"]
[Result "1-0"]
[WhiteElo "2653"]
[BlackElo "2490"]
[TimeControl "180+1"]
[EndTime "9:20:02 PDT"]
[Termination "kemelgallo won by resignation"]

1. e4 {[%clk 0:03:00.9]} 1... e5 {[%clk 0:02:59.3]} 2. Nf3 {[%clk 0:03:00.6]}
2... Nc6 {[%clk 0:02:58.8]} 3. Bb5 {[%clk 0:02:58.4]} 3... a6 {[%clk 0:02:56.1]}
4. Ba4 {[%clk 0:02:58.4]} 4... Nf6 {[%clk 0:02:55.9]} 5. O-O {[%clk 0:02:59]}
5... Nxe4 {[%clk 0:02:54.6]} 6. Re1 {[%clk 0:02:57.5]} 6... Nc5 {[%clk 0:02:51]}
7. Nxe5 {[%clk 0:02:55.9]} 7... Nxe5 {[%clk 0:02:51]} 8. Rxe5+ {[%clk
0:02:56.8]} 8... Be7 {[%clk 0:02:51.1]} 9. Nc3 {[%clk 0:02:34.3]} 9... O-O
{[%clk 0:02:50.1]} 10. Bb3 {[%clk 0:02:28.7]} 10... Nxb3 {[%clk 0:02:48.5]} 11.
axb3 {[%clk 0:02:29.6]} 11... d6 {[%clk 0:02:48.9]} 12. Re1 {[%clk 0:02:29.8]}
12... Be6 {[%clk 0:02:49.2]} 13. Qf3 {[%clk 0:02:29.5]} 13... Rb8 {[%clk
0:02:46.5]} 14. d3 {[%clk 0:02:27.2]} 14... Qd7 {[%clk 0:02:46.5]} 15. h3 {[%clk
0:02:26.6]} 15... d5 {[%clk 0:02:46.5]} 16. Bf4 {[%clk 0:02:25.4]} 16... Rbd8
{[%clk 0:02:42.8]} 17. Qg3 {[%clk 0:02:21.6]} 17... Bd6 {[%clk 0:02:34]} 18. Ne2
{[%clk 0:02:18.4]} 18... Bf5 {[%clk 0:02:27.7]} 19. Nd4 {[%clk 0:02:14.6]} 19...
Bxf4 {[%clk 0:02:21.3]} 20. Qxf4 {[%clk 0:02:15.5]} 20... Bg6 {[%clk 0:02:20]}
21. Re2 {[%clk 0:02:11.7]} 21... c5 {[%clk 0:02:17.6]} 22. Nf3 {[%clk
0:02:10.4]} 22... f6 {[%clk 0:02:10.9]} 23. Rae1 {[%clk 0:02:09.7]} 23... Rf7
{[%clk 0:01:57.1]} 24. Nh4 {[%clk 0:02:07.7]} 24... d4 {[%clk 0:01:48.8]} 25.
Re6 {[%clk 0:01:57.8]} 25... Rdf8 {[%clk 0:01:42.2]} 26. Qg3 {[%clk 0:01:53.6]}
26... Bh5 {[%clk 0:01:34.9]} 27. Nf5 {[%clk 0:01:53.5]} 27... Kh8 {[%clk
0:01:34.5]} 28. Nd6 {[%clk 0:01:44.6]} 28... f5 {[%clk 0:01:24.5]} 29. Nxf7+
{[%clk 0:01:42.2]} 29... Bxf7 {[%clk 0:01:25.4]} 30. Qd6 {[%clk 0:01:38.4]}
30... Qc8 {[%clk 0:01:09.7]} 31. Re7 {[%clk 0:01:35.8]} 31... Kg8 {[%clk
0:01:08]} 32. Rc7 {[%clk 0:01:33.9]} 32... Qb8 {[%clk 0:01:08.1]} 33. Qxc5
{[%clk 0:01:31.2]} 33... f4 {[%clk 0:01:06.7]} 34. Ree7 {[%clk 0:01:29.5]} 34...
f3 {[%clk 0:01:06.6]} 35. Qf5 {[%clk 0:01:26.3]} 35... Qd8 {[%clk 0:00:49.1]}
36. Rxf7 {[%clk 0:01:22.5]} 1-0